bitfinex-derivatives/quotes_BTCF0:USTF0_20250427
["timestamp","ask_amount","ask_price","bid_price","bid_amount"]
[1745721847807,0.66297991,94381.0,94380.0,0.12]
[1745721848214,0.45116191,94381.0,94378.0,0.0317]
[1745721848708,0.2118208,94380.0,94378.0,0.0317]
[1745721849300,0.2730225,94379.0,94378.0,0.0317]
[1745721849509,0.2730225,94379.0,94370.0,0.00105965]
[1745721849510,0.0612,94379.0,94370.0,0.00105965]
[1745721849708,0.2118255,94378.0,94372.0,0.2450377]
[1745721850205,0.0612,94377.0,94372.0,0.3650377]
[1745721850602,0.0612,94377.0,94374.0,0.2118337]
[1745721850800,0.0612,94377.0,94375.0,0.0332]
[1745721851309,0.0612,94377.0,94375.0,0.1532]
[1745721852402,0.2730271,94377.0,94375.0,0.1532]
[1745721852908,0.2740271,94377.0,94375.0,0.1532]
[1745721854106,0.0622,94377.0,94375.0,0.1532]
[1745721855916,0.0318,94377.0,94376.0,0.2118292]
[1745721856125,0.0318,94377.0,94376.0,0.3318292]
[1745721856416,0.0318,94377.0,94376.0,0.3639292]
[1745721858416,0.0328,94377.0,94376.0,0.3639292]
[1745721861912,0.002,94377.0,94376.0,0.3639292]
[1745721867519,0.002,94377.0,94376.0,0.3965292]
[1745721873416,0.0325,94386.0,94385.0,0.211809]
[1745721873615,0.0325,94386.0,94385.0,0.572609]
[1745721874122,0.0325,94386.0,94385.0,0.692609]
[1745721874620,0.04158244,94386.0,94385.0,0.724309]
[1745721876121,0.05825672,94386.0,94385.0,0.724309]
[1745721878116,0.05825672,94386.0,94385.0,0.754309]
[1745721878313,0.0322,94400.0,94399.0,0.2117776]
[1745721878523,0.0653,94400.0,94399.0,0.2117776]
[1745721878723,0.08292053,94419.0,94399.0,0.105932]
[1745721878913,0.08292053,94419.0,94418.0,0.211735]
[1745721879117,0.09969095,94419.0,94418.0,0.211735]
[1745721879618,0.01677042,94419.0,94418.0,0.211735]
[1745721879813,0.3608,94424.0,94423.0,0.2117238]
[1745721880619,0.3608,94424.0,94416.0,0.0529348]
[1745721880818,0.0315,94423.0,94422.0,0.211726]
[1745721881124,0.0778515,94423.0,94421.0,0.2117266]
[1745721882224,0.0778515,94423.0,94421.0,0.3317266]
[1745721882816,0.2975295,94423.0,94421.0,0.12]
[1745721883118,0.0858055,94423.0,94401.0,0.07176]
[1745721883323,0.0858055,94423.0,94413.0,0.2117457]
[1745721883324,0.211731,94420.0,94413.0,0.2117457]
[1745721883526,0.063,94419.0,94413.0,0.2117457]
[1745721883920,0.063,94419.0,94401.0,0.124703]
[1745721884120,0.3608,94416.0,94406.0,0.05294]
[1745721884427,0.093,94415.0,94410.0,0.2117511]
[1745721884628,0.093,94415.0,94411.0,0.2117491]
[1745721885124,0.093,94415.0,94413.0,0.001]
[1745721886027,0.3047433,94415.0,94413.0,0.001]
[1745721886232,0.211744,94414.0,94413.0,0.001]
[1745721886730,0.211744,94414.0,94411.0,0.2167491]
[1745721887027,0.0637,94413.0,94411.0,0.2167491]
[1745721887423,0.0637,94413.0,94411.0,0.2117491]
[1745721887827,0.2117485,94412.0,94409.0,0.264692]
[1745721888032,0.2117485,94412.0,94411.0,0.005]
[1745721888736,0.2117485,94412.0,94411.0,0.2167507]
[1745721889228,0.2117485,94412.0,94411.0,0.3367507]
[1745721889824,0.001,94413.0,94411.0,0.3367507]
[1745721890024,0.001,94412.0,94411.0,0.3377507]
[1745721899730,0.001,94412.0,94411.0,0.126]
[1745721899940,0.2127485,94412.0,94411.0,0.126]
[1745721900137,0.2127485,94412.0,94411.0,0.006]
[1745721900327,0.2117709,94402.0,94393.0,0.0529476]
[1745721900638,0.0529439,94400.0,94389.0,0.07164]
[1745721900832,0.11315391,94400.0,94385.0,0.3608]
[1745721901033,0.211799,94390.0,94383.0,0.2118114]
[1745721901338,0.2749003,94389.0,94384.0,0.2118112]
[1745721901638,0.0631,94389.0,94383.0,0.0529532]
[1745721901932,0.0314,94388.0,94387.0,0.21339375]
[1745721902132,0.0314,94388.0,94387.0,0.33339375]
[1745721902340,0.062,94388.0,94387.0,0.33339375]
[1745721902631,0.062,94388.0,94387.0,0.12158925]
[1745721903037,0.2738023,94388.0,94387.0,0.12158925]
[1745721903238,0.2738023,94388.0,94387.0,0.00158925]
[1745721903432,0.062,94388.0,94387.0,0.00158925]
[1745721903941,0.062,94388.0,94387.0,0.21339375]
[1745721904241,0.063,94388.0,94387.0,0.33339375]
[1745721905939,0.0316,94388.0,94387.0,0.33339375]
[1745721907140,0.0316,94388.0,94387.0,0.69419375]
[1745721911337,0.001,94388.0,94387.0,0.69419375]
[1745721921434,0.001,94388.0,94387.0,0.33339375]
[1745721921631,0.001,94388.0,94387.0,0.72499375]
[1745721928956,0.001,94388.0,94387.0,0.69419375]
[1745721929144,0.001,94388.0,94387.0,0.21339375]
[1745721931157,0.001,94388.0,94387.0,0.33339375]
[1745721934241,0.001,94388.0,94387.0,0.21339375]
[1745721935253,0.001,94388.0,94387.0,0.33339375]
[1745721936044,0.001,94388.0,94387.0,0.69419375]
[1745721938354,0.001,94388.0,94387.0,0.72469375]
[1745721944359,0.001,94388.0,94387.0,0.36389375]
[1745721944547,0.001,94388.0,94387.0,0.72469375]
[1745721949259,0.001,94388.0,94387.0,0.36389375]
[1745721949556,0.001,94388.0,94387.0,0.72469375]
[1745721950564,0.001,94388.0,94387.0,0.36389375]
[1745721950859,0.001,94388.0,94387.0,0.72469375]
[1745721951051,0.001,94388.0,94387.0,0.36389375]
[1745721951250,0.001,94388.0,94387.0,0.72469375]
[1745721952952,0.001,94388.0,94387.0,0.79625375]
[1745721957460,0.001,94388.0,94387.0,0.48238925]
[1745721957461,0.2128023,94388.0,94387.0,0.48238925]
[1745721957658,0.001,94388.0,94387.0,0.69419375]
[1745721958159,0.001,94388.0,94387.0,0.57419375]
[1745721959350,0.0327,94388.0,94387.0,0.57419375]
[1745721963360,0.0327,94388.0,94387.0,0.21339375]
[1745721969263,0.2445023,94388.0,94387.0,0.00158925]
[1745721969465,0.0327,94388.0,94380.0,0.3608]
[1745721969668,0.211818,94381.0,94380.0,0.3608]
[1745721970678,0.0655,94381.0,94380.0,0.3608]
[1745721970873,0.0655,94381.0,94380.0,0.5726202]
[1745721971872,0.0665,94381.0,94380.0,0.5726202]
[1745721972072,0.0665,94381.0,94380.0,0.6926202]
[1745721973987,0.0337,94381.0,94380.0,0.6926202]
[1745721974576,0.0337,94381.0,94380.0,0.7234202]
[1745721975478,0.0337,94381.0,94380.0,0.4808]
[1745721975479,0.245518,94381.0,94380.0,0.4808]
[1745721976072,0.245518,94381.0,94380.0,0.3608]
[1745721976473,0.278218,94381.0,94380.0,0.3608]
[1745721978081,0.2118214,94380.0,94375.0,0.2118314]
[1745721978481,0.0633,94379.0,94375.0,0.2118314]
[1745721978681,0.2751225,94379.0,94375.0,0.2118314]
[1745721979083,0.2751225,94379.0,94375.0,0.3318314]
[1745721979481,0.2751225,94379.0,94375.0,0.3328314]
[1745721980977,0.2751225,94379.0,94375.0,0.3318314]
[1745721981179,0.31248183,94379.0,94375.0,0.3328314]
[1745721981685,0.31248183,94379.0,94376.0,0.0327]
[1745721982083,0.31248183,94379.0,94376.0,0.1527]
[1745721982585,0.30548183,94379.0,94376.0,0.1527]
[1745721982774,0.31248183,94379.0,94376.0,0.1537]
[1745721983175,0.31248183,94379.0,94376.0,0.0337]
[1745721983486,0.10065933,94379.0,94376.0,0.2455288]
[1745721983679,0.10065933,94379.0,94378.0,0.2118247]
[1745721984076,0.10065933,94379.0,94377.0,0.2118255]
[1745721984482,0.10065933,94379.0,94378.0,0.0302]
[1745721984785,0.10165933,94379.0,94378.0,0.0312]
[1745721985174,0.10165933,94379.0,94378.0,0.0302]
[1745721985374,0.10065933,94379.0,94378.0,0.0302]
[1745721985582,0.31248183,94379.0,94378.0,0.0302]
[1745721985783,0.2118337,94374.0,94373.0,0.3608]
[1745721986785,0.3080337,94374.0,94373.0,0.3608]
[1745721987185,0.2118378,94373.0,94371.0,0.2118398]
[1745721987387,0.2118382,94372.0,94371.0,0.0306]
[1745721987576,0.2763382,94372.0,94371.0,0.0306]
[1745721988995,0.2823382,94372.0,94371.0,0.0306]
[1745721993082,0.2823382,94372.0,94371.0,0.1506]
[1745721995392,0.2823382,94372.0,94371.0,0.1825]
[1745721996187,0.2823382,94372.0,94371.0,0.0306]
[1745721996584,0.2118404,94371.0,94370.0,0.00105965]
[1745721996986,0.2722404,94371.0,94370.0,0.00105965]
[1745721998592,0.2782404,94371.0,94370.0,0.00105965]
[1745721999289,0.2118449,94369.0,94368.0,0.0311]
[1745721999494,0.5726449,94369.0,94368.0,0.0311]
[1745721999685,0.2118472,94368.0,94367.0,0.00529843]
[1745721999886,0.2754472,94368.0,94367.0,0.00529843]
[1745722000090,0.2118607,94362.0,94361.0,0.0313]
[1745722000993,0.2754607,94362.0,94361.0,0.0313]
[1745722001191,0.2804607,94362.0,94361.0,0.0313]
[1745722015995,0.0686,94362.0,94361.0,0.2431629]
[1745722016198,0.0368,94362.0,94361.0,0.3631629]
[1745722016589,0.0368,94362.0,94361.0,0.3944629]
[1745722018498,0.0368,94362.0,94361.0,0.1513]
[1745722018688,0.0368,94362.0,94361.0,0.3631629]
[1745722018890,0.2486607,94362.0,94361.0,0.1513]
[1745722019395,0.2118629,94361.0,94360.0,0.3608]
[1745722019590,0.2441629,94361.0,94360.0,0.3608]
[1745722020395,0.2491629,94361.0,94360.0,0.3608]
[1745722025092,0.2491629,94361.0,94358.0,0.5131]
[1745722025093,0.2118674,94359.0,94358.0,0.5131]
[1745722025293,0.2118674,94359.0,94358.0,0.3931]
[1745722025797,0.2443674,94359.0,94358.0,0.3931]
[1745722026198,0.0325,94359.0,94358.0,0.5131]
[1745722026598,0.2493674,94359.0,94358.0,0.5131]
[1745722026799,0.0375,94359.0,94358.0,0.5131]
[1745722027705,0.0682,94359.0,94358.0,0.5131]
[1745722027908,0.2800674,94359.0,94358.0,0.5131]
[1745722028895,0.2760674,94359.0,94358.0,0.5131]
[1745722029708,0.0642,94359.0,94358.0,0.7249696]
[1745722030208,0.0642,94359.0,94358.0,0.5131]
[1745722030809,0.0642,94359.0,94358.0,0.7249696]
[1745722032512,0.001,94359.0,94358.0,0.7249696]
[1745722035913,0.001,94359.0,94358.0,0.8309496]
[1745722043916,0.001,94359.0,94358.0,0.7249696]
[1745722048418,0.0338,94359.0,94358.0,0.7249696]
[1745722048617,0.066,94359.0,94358.0,0.7249696]
[1745722049717,0.066,94359.0,94358.0,0.3641696]
[1745722049925,0.066,94359.0,94358.0,0.7249696]
[1745722063633,0.066,94359.0,94358.0,0.3641696]
[1745722063825,0.066,94359.0,94358.0,0.7249696]
[1745722065619,0.066,94359.0,94358.0,0.3641696]
[1745722065822,0.066,94359.0,94358.0,0.7249696]
[1745722068531,0.066,94359.0,94358.0,0.3641696]
[1745722068731,0.066,94359.0,94358.0,0.7249696]
[1745722071533,0.066,94359.0,94358.0,0.3641696]
[1745722071729,0.066,94359.0,94358.0,0.7249696]
[1745722072137,0.066,94359.0,94358.0,0.3641696]
[1745722072338,0.066,94359.0,94358.0,0.7249696]
[1745722080433,0.2778674,94359.0,94358.0,0.5131]
[1745722081439,0.2778674,94359.0,94358.0,0.4808]
[1745722081644,0.2778674,94359.0,94358.0,0.6926696]
[1745722082532,0.066,94359.0,94358.0,0.6926696]
[1745722085335,0.066,94359.0,94358.0,0.7254696]
[1745722085743,0.2778674,94359.0,94358.0,0.5136]
[1745722087346,0.2778674,94359.0,94358.0,0.1528]
[1745722089148,0.066,94359.0,94358.0,0.3646696]
[1745722089444,0.2778674,94359.0,94358.0,0.3646696]
[1745722089651,0.2778674,94359.0,94358.0,0.1528]
[1745722090442,0.066,94359.0,94358.0,0.3646696]
[1745722090642,0.2778674,94359.0,94358.0,0.3646696]
[1745722091447,0.066,94359.0,94358.0,0.3646696]
[1745722092651,0.2778674,94359.0,94358.0,0.3646696]
[1745722094352,0.2778674,94359.0,94358.0,0.1528]
[1745722100352,0.2778674,94359.0,94358.0,0.12]
[1745722101144,0.2118764,94355.0,94354.0,0.3608]
[1745722101456,0.2118809,94353.0,94352.0,0.0304]
[1745722102143,0.2763809,94353.0,94352.0,0.1504]
[1745722104045,0.2773809,94353.0,94352.0,0.1564]
[1745722108251,0.2773809,94353.0,94352.0,0.0364]
[1745722109147,0.2773809,94353.0,94340.0,0.00105999]
[1745722109148,0.2119078,94341.0,94340.0,0.00105999]
[1745722109554,0.5727078,94341.0,94340.0,0.00105999]
[1745722109947,0.6051078,94341.0,94340.0,0.00105999]
[1745722110455,0.6431078,94341.0,94340.0,0.00105999]
[1745722111656,0.6451078,94341.0,94340.0,0.00105999]
[1745722118363,0.4332,94341.0,94340.0,0.00105999]
[1745722118661,0.0424,94341.0,94340.0,0.57377009]
[1745722119061,0.0424,94341.0,94340.0,0.69377009]
[1745722119259,0.0424,94341.0,94340.0,0.72627009]
[1745722122962,0.0424,94341.0,94340.0,0.36547009]
[1745722123168,0.01,94341.0,94340.0,0.72627009]
[1745722125074,0.01,94341.0,94340.0,0.83227009]
[1745722129060,0.01,94341.0,94340.0,0.47147009]
[1745722129267,0.01,94341.0,94340.0,0.83227009]
[1745722130967,0.00016,94348.0,94340.0,0.62035999]
[1745722131171,0.00016,94348.0,94347.0,0.2118943]
[1745722131581,0.0331,94353.0,94347.0,0.2118943]
[1745722131582,0.0331,94353.0,94352.0,0.2118831]
[1745722131765,0.2449809,94353.0,94352.0,0.3608]
[1745722131963,0.2449809,94353.0,94352.0,0.5726831]
[1745722132171,0.0331,94353.0,94352.0,0.6926831]
[1745722132372,0.0646,94353.0,94352.0,0.6926831]
[1745722133075,0.0646,94353.0,94352.0,0.6986831]
[1745722133368,0.0656,94353.0,94352.0,0.6986831]
[1745722134869,0.0656,94353.0,94352.0,0.3378831]
[1745722135864,0.2774809,94353.0,94352.0,0.126]
[1745722136378,0.2774809,94353.0,94352.0,0.006]
[1745722141378,0.3834649,94353.0,94352.0,0.006]
[1745722141567,0.2119078,94341.0,94340.0,0.00105999]
[1745722142478,0.2763078,94341.0,94340.0,0.00105999]
[1745722142778,0.2823078,94341.0,94340.0,0.00205999]
[1745722146077,0.2823078,94341.0,94340.0,0.12205999]
[1745722150379,0.2823078,94341.0,94340.0,0.00205999]
[1745722160888,0.28212895,94341.0,94340.0,0.00205999]
[1745722161483,0.0529792,94337.0,94328.0,0.3608]
[1745722161684,0.0634,94336.0,94329.0,0.0303]
[1745722161884,0.2119325,94330.0,94329.0,0.0303]
[1745722162082,0.2119325,94330.0,94329.0,0.1503]
[1745722163382,0.2119325,94330.0,94329.0,0.1513]
[1745722164987,0.23197409,94330.0,94329.0,0.1513]
[1745722165187,0.23797409,94330.0,94329.0,0.1503]
[1745722170093,0.23797409,94330.0,94329.0,0.0303]
[1745722171597,0.23197409,94330.0,94329.0,0.0303]
[1745722171795,0.211946,94324.0,94323.0,0.3921]
[1745722172092,0.211946,94324.0,94323.0,0.5121]
[1745722172294,0.211946,94324.0,94307.0,0.3608]
[1745722172295,0.0529889,94320.0,94307.0,0.3608]
[1745722172488,0.2119977,94301.0,94300.0,0.1]
[1745722173191,0.2119977,94301.0,94300.0,0.22]
[1745722174885,0.2119977,94301.0,94300.0,0.252]
[1745722175195,0.22010086,94301.0,94300.0,0.252]
[1745722175390,0.22510086,94301.0,94300.0,0.252]
[1745722177394,0.2120269,94288.0,94280.0,0.00106066]
[1745722177895,0.2120269,94288.0,94280.0,0.21310456]
[1745722178096,0.2120269,94288.0,94287.0,0.4808]
[1745722178793,0.2434269,94288.0,94287.0,0.4808]
[1745722178994,0.26353278,94288.0,94287.0,0.4808]
[1745722179197,0.05150588,94288.0,94287.0,0.4808]
[1745722179393,0.05650588,94288.0,94287.0,0.4808]
[1745722180197,0.26853278,94288.0,94287.0,0.4808]
[1745722180499,0.26853278,94288.0,94287.0,0.5117]
[1745722180995,0.05650588,94288.0,94287.0,0.5117]
[1745722181394,0.05650588,94288.0,94287.0,0.7237292]
[1745722181589,0.08710588,94288.0,94287.0,0.7237292]
[1745722181789,0.08710588,94288.0,94287.0,0.5117]
[1745722181997,0.29913278,94288.0,94287.0,0.5117]
[1745722182495,0.29913278,94288.0,94287.0,0.1509]
[1745722184504,0.29413278,94288.0,94287.0,0.1509]
[1745722184797,0.30013278,94288.0,94287.0,0.1509]
[1745722187395,0.30013278,94288.0,94287.0,0.12]
[1745722188007,0.29413278,94288.0,94287.0,0.12]
[1745722188197,0.30113278,94288.0,94287.0,0.12]
[1745722191101,0.29513278,94288.0,94287.0,0.12]
[1745722195004,0.18916588,94288.0,94271.0,0.0074]
[1745722195204,0.2120607,94273.0,94272.0,0.0302]
[1745722196000,0.2120629,94272.0,94271.0,0.12]
[1745722196200,0.2120652,94271.0,94270.0,0.0302]
[1745722196407,0.2428652,94271.0,94270.0,0.0302]
[1745722197003,0.0308,94271.0,94270.0,0.0302]
[1745722197214,0.0308,94271.0,94270.0,0.1502]
[1745722197709,0.063,94271.0,94270.0,0.1502]
[1745722197913,0.07,94271.0,94270.0,0.1502]
[1745722199716,0.2820652,94271.0,94270.0,0.1502]
[1745722200201,0.07,94271.0,94270.0,0.1502]
[1745722200711,0.2820652,94271.0,94270.0,0.1502]
[1745722201112,0.07,94271.0,94270.0,0.3622674]
[1745722201307,0.07,94271.0,94270.0,0.1502]
[1745722201511,0.07,94271.0,94270.0,0.3622674]
[1745722201711,0.0392,94271.0,94270.0,0.3622674]
[1745722202012,0.007,94271.0,94270.0,0.3622674]
[1745722202207,0.007,94271.0,94270.0,0.3665674]
[1745722203214,0.007,94271.0,94270.0,0.47264339]
[1745722205916,0.21203,94287.0,94286.0,0.2120292]
[1745722206102,0.24213,94287.0,94286.0,0.3320292]
[1745722206306,0.24213,94287.0,94286.0,0.3957292]
[1745722206608,0.0301,94287.0,94286.0,0.3957292]
[1745722206808,0.2421292,94287.0,94286.0,0.3957292]
[1745722207407,0.2431292,94287.0,94286.0,0.3997292]
[1745722207607,0.0311,94287.0,94286.0,0.3997292]
[1745722209621,0.0644,94287.0,94286.0,0.3997292]
[1745722209913,0.0311,94287.0,94286.0,0.3997292]
[1745722210713,0.0311,94287.0,94286.0,0.4040292]
[1745722212612,0.001,94287.0,94286.0,0.4040292]
[1745722213220,1e-08,94288.0,94287.0,0.2120292]
[1745722213519,0.00016,94292.0,94291.0,0.2120202]
[1745722213716,0.031,94299.0,94298.0,0.2120044]
[1745722214015,0.04902683,94299.0,94298.0,0.5728044]
[1745722214218,0.04902683,94299.0,94298.0,0.6928044]
[1745722214811,0.04902683,94299.0,94298.0,0.7229044]
[1745722215212,0.05002683,94299.0,94298.0,0.7269044]
[1745722216523,0.04902683,94299.0,94298.0,0.7229044]
[1745722216820,0.05002683,94299.0,94298.0,0.7279044]
[1745722218924,0.05002683,94299.0,94298.0,0.3671044]
[1745722226029,0.08312683,94299.0,94298.0,0.3671044]
[1745722234333,0.05049379,94299.0,94298.0,0.3671044]
[1745722240634,0.05049379,94299.0,94298.0,0.7279044]
[1745722242330,0.05049379,94299.0,94298.0,0.5159]
[1745722242634,0.05049379,94299.0,94298.0,0.6978044]
[1745722245029,0.032,94299.0,94298.0,0.6978044]
[1745722245236,0.032,94299.0,94298.0,0.8038524]
[1745722246137,0.032,94299.0,94298.0,0.7614044]
[1745722246727,0.032,94299.0,94298.0,0.8674524]
[1745722247036,0.0311,94319.0,94307.0,0.2119842]
[1745722247230,0.0311,94318.0,94307.0,0.5727842]
[1745722247933,0.02321818,94308.0,94307.0,0.5727842]
[1745722248131,0.02321818,94308.0,94307.0,0.6927842]
[1745722248326,0.02321818,94308.0,94307.0,0.6977842]
[1745722248327,0.02421818,94308.0,94307.0,0.6977842]
[1745722251532,0.0311,94319.0,94312.0,0.0529929]
[1745722251739,0.0311,94319.0,94318.0,0.5727595]
[1745722252137,0.04990716,94319.0,94318.0,0.6927595]
[1745722252933,0.05090716,94319.0,94318.0,0.6987595]
[1745722254239,0.05905526,94319.0,94318.0,0.6987595]
[1745722259545,0.05905526,94319.0,94318.0,0.7302595]
[1745722259932,0.05905526,94319.0,94318.0,0.7632595]
[1745722260137,0.05905526,94319.0,94318.0,0.7317595]
[1745722262846,0.05090716,94319.0,94318.0,0.7317595]
[1745722263149,0.0321,94319.0,94318.0,0.7317595]
[1745722263643,0.0965,94319.0,94318.0,0.7317595]
[1745722264447,0.0321,94319.0,94318.0,0.7317595]
[1745722265939,0.001,94319.0,94318.0,0.7317595]
[1745722268456,0.001,94319.0,94318.0,1.0925595]
[1745722270046,0.03238143,94326.0,94322.0,0.0529873]
[1745722270347,0.0332,94330.0,94326.0,0.0529851]
[1745722270543,0.04104752,94330.0,94329.0,0.5727348]
[1745722271241,0.07356467,94330.0,94329.0,0.6927348]
[1745722271540,0.07456467,94330.0,94329.0,0.6927348]
[1745722271949,0.07356467,94330.0,94329.0,0.6927348]
[1745722272143,0.07456467,94330.0,94329.0,0.6987348]
[1745722273245,0.10726467,94330.0,94329.0,0.6987348]
[1745722273442,0.10626467,94330.0,94329.0,0.6927348]
[1745722273642,0.10726467,94330.0,94329.0,0.7017348]
[1745722275050,0.06671715,94330.0,94329.0,0.7017348]
[1745722275647,0.09941715,94330.0,94329.0,0.7017348]
[1745722281161,0.09941715,94330.0,94329.0,0.5817348]
[1745722283057,0.09941715,94330.0,94329.0,0.2209348]
[1745722285152,0.09941715,94330.0,94329.0,0.3409348]
[1745722286754,0.09941715,94330.0,94329.0,0.7017348]
[1745722287253,0.09941715,94330.0,94329.0,0.5817348]
[1745722288152,0.09941715,94330.0,94329.0,0.7017348]
[1745722289855,0.09941715,94330.0,94329.0,0.3409348]
[1745722290062,0.09941715,94330.0,94329.0,0.7017348]
[1745722292557,0.09941715,94330.0,94329.0,0.3409348]
[1745722293663,0.09941715,94330.0,94329.0,0.3725348]
[1745722294852,0.09941715,94330.0,94329.0,0.7333348]
[1745722301258,0.09941715,94330.0,94329.0,0.3725348]
[1745722301563,0.09941715,94330.0,94329.0,0.7333348]
[1745722303855,0.09941715,94330.0,94329.0,0.3725348]
[1745722304254,0.09941715,94330.0,94329.0,0.7333348]
[1745722315979,0.06671715,94330.0,94329.0,0.7333348]
[1745722317776,0.03351715,94330.0,94329.0,0.7333348]
[1745722323079,0.001,94330.0,94329.0,0.7333348]
[1745722323873,0.0328,94330.0,94329.0,0.7333348]
[1745722324168,0.0949,94330.0,94329.0,0.8040548]
[1745722331280,0.0638,94330.0,94329.0,0.8040548]
[1745722332672,0.001,94330.0,94329.0,0.8040548]
[1745722335887,0.0335,94330.0,94329.0,0.8040548]
[1745722336485,0.0667,94330.0,94329.0,0.8040548]
[1745722336683,0.0667,94330.0,94329.0,0.7333348]
[1745722336883,0.0667,94330.0,94329.0,0.8039748]
[1745722340180,0.0667,94330.0,94329.0,0.7723748]
[1745722340376,0.2786325,94330.0,94329.0,0.7723748]
[1745722340784,0.2786325,94330.0,94329.0,0.7017348]
[1745722341188,0.0667,94330.0,94329.0,0.5817348]
[1745722342891,0.0667,94330.0,94329.0,0.2209348]
[1745722343589,0.2786325,94330.0,94329.0,0.2209348]
[1745722343790,0.0667,94330.0,94329.0,0.2209348]
[1745722343989,0.2786325,94330.0,94329.0,0.2209348]
[1745722349089,0.2786325,94330.0,94329.0,0.009]
[1745722358398,0.2786325,94330.0,94329.0,0.2209348]
[1745722361693,0.2786325,94330.0,94329.0,0.2523348]
[1745722362996,0.2786325,94330.0,94329.0,0.0404]
[1745722363194,0.2786325,94330.0,94329.0,0.2523348]
[1745722364990,0.0667,94330.0,94329.0,0.2523348]
[1745722365189,0.2786325,94330.0,94329.0,0.2523348]
[1745722365396,0.0335,94330.0,94329.0,0.2523348]
[1745722367207,0.0335,94330.0,94329.0,0.3723348]
[1745722376301,0.0191,94330.0,94329.0,0.3723348]
[1745722379011,0.0013,94331.0,94330.0,0.2119325]
[1745722379220,0.0013,94331.0,94330.0,0.2421325]
[1745722379407,0.0013,94331.0,94330.0,0.2746325]
[1745722380103,0.0013,94331.0,94330.0,0.3946325]
[1745722380307,0.0023,94331.0,94330.0,0.4046325]
[1745722381313,0.0023,94331.0,94330.0,0.4036325]
[1745722382705,0.0013,94331.0,94330.0,0.3946325]
[1745722382905,0.0023,94331.0,94330.0,0.4036325]
[1745722393903,0.02918674,94333.0,94330.0,0.4036325]
[1745722394201,0.0656,94342.0,94337.0,0.2119168]
[1745722395105,0.03078639,94338.0,94337.0,0.3319168]
[1745722395299,0.0052,94338.0,94337.0,0.3319168]
[1745722395506,0.03003362,94338.0,94337.0,0.3319168]
[1745722396310,0.03814847,94338.0,94337.0,0.3319168]
[1745722396705,0.03914847,94338.0,94337.0,0.3399168]
[1745722397613,0.03914847,94338.0,94337.0,0.3419168]
[1745722399514,0.03914847,94338.0,94337.0,0.7027168]
[1745722401626,1e-08,94338.0,94337.0,0.7027168]
[1745722409725,0.0629,94354.0,94353.0,0.2118809]
[1745722409930,0.05746583,94354.0,94353.0,0.5726809]
[1745722410232,0.02496583,94354.0,94353.0,0.6926809]
[1745722410432,0.0632,94360.0,94359.0,0.2118674]
[1745722411132,0.0632,94360.0,94359.0,0.3318674]
[1745722411937,0.08871345,94360.0,94359.0,0.3318674]
[1745722412234,0.09776081,94360.0,94359.0,0.3368674]
[1745722420035,0.09776081,94360.0,94359.0,0.125]
[1745722420333,0.56453681,94360.0,94345.0,0.19447595]
[1745722420531,0.2648584,94351.0,94343.0,0.0529755]
[1745722420732,0.2118905,94349.0,94347.0,0.2118943]
[1745722420935,0.2740938,94348.0,94346.0,0.2118954]
[1745722421123,0.0622,94348.0,94347.0,0.2118943]
[1745722421932,0.0622,94348.0,94347.0,0.2198943]
[1745722422140,0.0622,94348.0,94347.0,0.3398943]
[1745722422436,0.0622,94348.0,94347.0,0.3318943]
[1745722422627,0.0622,94348.0,94347.0,0.3398943]
[1745722422628,0.0632,94348.0,94347.0,0.3398943]
[1745722426229,0.0632,94348.0,94347.0,0.2198943]
[1745722431139,0.0632,94348.0,94347.0,0.3398943]
[1745722433240,0.0632,94348.0,94347.0,0.2198943]
[1745722434037,0.0632,94348.0,94347.0,0.3398943]
[1745722436035,0.0632,94348.0,94347.0,0.4024943]
[1745722448347,0.001,94348.0,94347.0,0.4024943]
[1745722451351,0.3608,94356.0,94355.0,0.2118764]
[1745722451749,0.03356081,94360.0,94359.0,0.2118674]
[1745722452047,0.0328,94364.0,94360.0,0.2118651]
[1745722452249,0.0328,94364.0,94360.0,0.2761651]
[1745722452445,0.02616672,94361.0,94360.0,0.2761651]
[1745722452652,0.0013,94361.0,94360.0,0.2761651]
[1745722453247,0.02581162,94361.0,94360.0,0.3961651]
[1745722453853,0.02681162,94361.0,94360.0,0.3991651]
[1745722455850,0.03472057,94361.0,94360.0,0.3991651]
[1745722459347,0.06542057,94361.0,94360.0,0.3991651]
[1745722463146,0.03472057,94361.0,94360.0,0.3991651]
[1745722471561,0.03472057,94361.0,94360.0,0.7599651]
[1745722472259,0.01020895,94361.0,94360.0,0.7599651]
[1745722472866,1e-08,94368.0,94367.0,0.2118494]
[1745722473054,1e-08,94368.0,94367.0,0.3318494]
[1745722473252,1e-08,94368.0,94367.0,0.3954494]
[1745722473868,0.06280001,94368.0,94367.0,0.4658094]
[1745722474963,0.06380001,94368.0,94367.0,0.4688094]
[1745722475954,0.06380001,94368.0,94367.0,0.8296094]
[1745722482467,0.06380001,94368.0,94367.0,0.4688094]
[1745722482770,0.06380001,94368.0,94367.0,0.8296094]
[1745722483360,0.06380001,94368.0,94367.0,0.4688094]
[1745722483569,0.06380001,94368.0,94367.0,0.8296094]
[1745722484072,0.06380001,94368.0,94367.0,0.4688094]
[1745722484262,0.06380001,94368.0,94367.0,0.8296094]
[1745722487864,0.06380001,94368.0,94367.0,0.4688094]
[1745722488066,0.06380001,94368.0,94367.0,0.8296094]
[1745722490877,0.06380001,94368.0,94367.0,0.4688094]
[1745722491079,0.06380001,94368.0,94367.0,0.8296094]
[1745722496671,0.06380001,94368.0,94367.0,0.7592494]
[1745722496869,0.06380001,94368.0,94367.0,0.8295294]
[1745722498974,0.06380001,94368.0,94367.0,0.4687294]
[1745722499177,0.06380001,94368.0,94367.0,0.8295294]
[1745722502884,0.00100001,94368.0,94367.0,0.8295294]
[1745722505679,0.0921,94383.0,94382.0,0.2118158]
[1745722506273,0.0921,94383.0,94382.0,0.3318158]
[1745722506871,0.13707221,94383.0,94382.0,0.3318158]
[1745722507274,0.10707221,94383.0,94382.0,0.3620158]
[1745722507471,0.10807221,94383.0,94382.0,0.3620158]
[1745722507677,0.11606423,94383.0,94382.0,0.3620158]
[1745722509180,0.11506423,94383.0,94382.0,0.3620158]
[1745722509679,0.11506423,94383.0,94382.0,0.3640158]
[1745722513079,0.11506423,94383.0,94382.0,0.7248158]
[1745722513785,0.07009202,94383.0,94382.0,0.7248158]